[Event "Open NK Rapid 2025 bord 26-50"]
[Site "Helmond, Netherlands"]
[Date "2025.05.03"]
[Round "2.15"]
[White "Vogel, Jaap"]
[Black "Quintus, Max"]
[Result "1/2-1/2"]
[TimeControl "15 min +5 sec increment"]
[WhiteFideId "1000764"]
[BlackFideId "1091450"]
[WhiteElo "2006"]
[BlackElo "1803"]

1. d4 {[%clk 00:15:09]} Nf6 {[%clk 00:15:08]} {[%emt 00:00:02]} 2. Nf3 {[%clk
00:15:13]} {[%emt 00:00:02]} d5 {[%clk 00:15:12]} 3. Bf4 {[%clk 00:15:17]}
{[%emt 00:00:02]} c5 {[%clk 00:14:59]} {[%emt 00:00:18]} 4. e3 {[%clk
00:15:20]} {[%emt 00:00:02]} Nc6 {[%clk 00:14:59]} {[%emt 00:00:04]} 5. Nbd2
{[%clk 00:15:16]} {[%emt 00:00:09]} Bf5 {[%clk 00:14:36]} {[%emt 00:00:28]} 6.
Bb5 {[%clk 00:15:16]} {[%emt 00:00:06]} a6 {[%clk 00:13:40]} {[%emt 00:01:01]}
7. Bxc6+ {[%clk 00:15:06]} {[%emt 00:00:15]} bxc6 {[%clk 00:13:44]} {[%emt
00:00:01]} 8. dxc5 {[%clk 00:14:29]} {[%emt 00:00:42]} Qa5 {[%clk 00:13:27]}
{[%emt 00:00:21]} 9. Nd4 {[%clk 00:14:25]} {[%emt 00:00:09]} Bd7 {[%clk
00:13:09]} {[%emt 00:00:23]} 10. N4b3 {[%clk 00:14:24]} {[%emt 00:00:06]} Qb5
{[%clk 00:12:23]} {[%emt 00:00:52]} 11. a4 {[%clk 00:13:59]} {[%emt 00:00:31]}
Qb7 {[%clk 00:11:49]} {[%emt 00:00:38]} 12. O-O {[%clk 00:12:59]} {[%emt
00:01:05]} g6 {[%clk 00:11:29]} {[%emt 00:00:24]} 13. Be5 {[%clk 00:12:38]}
{[%emt 00:00:26]} Bg7 {[%clk 00:11:26]} {[%emt 00:00:09]} 14. e4 {[%clk
00:11:24]} {[%emt 00:01:19]} O-O {[%clk 00:10:52]} {[%emt 00:00:38]} 15. exd5
{[%clk 00:11:27]} {[%emt 00:00:02]} Nxd5 {[%clk 00:10:39]} {[%emt 00:00:18]} 16.
Bxg7 {[%clk 00:10:28]} {[%emt 00:01:05]} Kxg7 {[%clk 00:10:42]} {[%emt
00:00:02]} 17. Nc4 {[%clk 00:10:32]} Rad8 {[%clk 00:10:16]} {[%emt 00:00:32]}
18. Qf3 {[%clk 00:08:15]} {[%emt 00:02:22]} f6 {[%clk 00:09:23]} {[%emt
00:00:57]} 19. Qg3 {[%clk 00:07:29]} {[%emt 00:00:51]} Qb4 {[%clk 00:08:46]}
{[%emt 00:00:43]} 20. Ne3 {[%clk 00:07:11]} {[%emt 00:00:23]} Nf4 {[%clk
00:07:39]} {[%emt 00:01:12]} 21. Kh1 {[%clk 00:06:44]} {[%emt 00:00:31]} e5
{[%clk 00:07:01]} {[%emt 00:00:43]} 22. Rfd1 {[%clk 00:05:33]} {[%emt
00:01:17]} Be6 {[%clk 00:06:49]} {[%emt 00:00:17]} 23. Qf3 {[%clk 00:05:32]}
{[%emt 00:00:06]} Nd5 {[%clk 00:05:22]} {[%emt 00:01:32]} 24. Qe2 {[%emt
00:01:22]} Nf4 {[%clk 00:04:30]} 25. Qxa6 {[%clk 00:05:05]} {[%emt 00:00:12]}
Qe4 {[%clk 00:04:09]} {[%emt 00:00:26]} 26. Nd2 {[%clk 00:04:28]} {[%emt
00:00:41]} Rxd2 {[%clk 00:03:36]} {[%emt 00:00:38]} 27. Rxd2 {[%clk 00:04:32]}
Bd5 {[%clk 00:03:26]} {[%emt 00:00:16]} 28. Rxd5 {[%clk 00:04:28]} {[%emt
00:00:08]} cxd5 {[%clk 00:03:21]} {[%emt 00:00:10]} 29. Qf1 {[%clk 00:03:13]}
{[%emt 00:01:21]} Rb8 {[%clk 00:02:28]} {[%emt 00:00:58]} 30. a5 {[%clk
00:02:35]} {[%emt 00:00:43]} d4 {[%clk 00:01:57]} {[%emt 00:00:36]} 31. Nc4
{[%clk 00:02:39]} {[%emt 00:00:01]} Qd5 {[%clk 00:01:39]} {[%emt 00:00:23]} 32.
Nb6 {[%clk 00:02:35]} {[%emt 00:00:09]} Ne6 {[%clk 00:01:00]} {[%emt 00:00:44]}
33. b4 {[%clk 00:02:07]} {[%emt 00:00:34]} Rb7 {[%clk 00:00:49]} {[%emt
00:00:15]} 34. Qc4 {[%clk 00:02:10]} {[%emt 00:00:02]} Qxc4 {[%clk 00:00:31]}
{[%emt 00:00:22]} 35. Nxc4 {[%clk 00:02:14]} {[%emt 00:00:02]} Rxb4 {[%clk
00:00:32]} {[%emt 00:00:04]} 36. Nd6 {[%clk 00:02:11]} {[%emt 00:00:07]} Nxc5
{[%clk 00:00:26]} {[%emt 00:00:12]} 37. f4 {[%clk 00:02:11]} {[%emt 00:00:05]}
1/2-1/2

[Event "Open NK Rapid 2025 bord 26-50"]
[Site "Helmond, Netherlands"]
[Date "2025.05.03"]
[Round "2.16"]
[White "Husers, Yannic"]
[Black "Ten Kate, Gustav"]
[Result "1-0"]
[TimeControl "15 min +5 sec increment"]
[WhiteFideId "1043587"]
[BlackFideId "1095781"]
[WhiteElo "2002"]
[BlackElo "1800"]

1. e4 {[%clk 00:15:08]} {[%emt 00:00:01]} e6 {[%clk 00:14:57]} {[%emt
00:00:14]} 2. d4 {[%clk 00:15:09]} {[%emt 00:00:03]} d5 {[%clk 00:15:01]} 3.
Nd2 {[%clk 00:15:08]} {[%emt 00:00:07]} Nf6 {[%clk 00:15:05]} {[%emt 00:00:01]}
4. e5 {[%clk 00:15:07]} {[%emt 00:00:06]} Nfd7 {[%clk 00:15:09]} {[%emt
00:00:01]} 5. f4 {[%clk 00:15:05]} {[%emt 00:00:07]} c5 {[%clk 00:15:10]}
{[%emt 00:00:04]} 6. c3 {[%clk 00:15:06]} {[%emt 00:00:03]} Nc6 {[%clk
00:15:13]} {[%emt 00:00:02]} 7. Ndf3 {[%clk 00:15:06]} {[%emt 00:00:05]} a6
{[%clk 00:14:54]} {[%emt 00:00:24]} 8. Bd3 {[%clk 00:14:50]} {[%emt 00:00:21]}
cxd4 {[%clk 00:14:37]} {[%emt 00:00:22]} 9. cxd4 {[%clk 00:14:48]} {[%emt
00:00:07]} Qb6 {[%clk 00:14:31]} {[%emt 00:00:12]} 10. Ne2 {[%clk 00:14:44]}
{[%emt 00:00:09]} Be7 {[%clk 00:14:18]} {[%emt 00:00:18]} 11. O-O {[%clk
00:14:25]} {[%emt 00:00:24]} f6 {[%clk 00:13:14]} {[%emt 00:01:09]} 12. Kh1
{[%clk 00:14:22]} {[%emt 00:00:07]} O-O {[%clk 00:11:06]} {[%emt 00:02:12]} 13.
g4 {[%clk 00:13:36]} {[%emt 00:00:52]} fxe5 {[%clk 00:10:35]} {[%emt 00:00:37]}
14. dxe5 {[%clk 00:12:58]} {[%emt 00:00:43]} Nc5 {[%clk 00:10:29]} {[%emt
00:00:11]} 15. Bb1 {[%clk 00:10:37]} {[%emt 00:02:25]} Bd7 {[%clk 00:10:32]}
{[%emt 00:00:02]} 16. Ng3 {[%clk 00:10:17]} {[%emt 00:00:25]} Rac8 {[%clk
00:09:47]} {[%emt 00:00:50]} 17. f5 {[%clk 00:09:11]} {[%emt 00:01:11]} Qb4
{[%clk 00:06:59]} {[%emt 00:02:53]} 18. f6 {[%clk 00:06:42]} {[%emt 00:02:34]}
gxf6 {[%clk 00:07:03]} {[%emt 00:00:01]} 19. exf6 {[%clk 00:06:33]} {[%emt
00:00:14]} Bxf6 {[%clk 00:06:47]} {[%emt 00:00:21]} 20. Nh5 {[%clk 00:06:26]}
{[%emt 00:00:11]} Ne4 {[%clk 00:05:48]} {[%emt 00:01:05]} 21. g5 {[%clk
00:05:47]} {[%emt 00:00:44]} Bxb2 {[%clk 00:05:06]} {[%emt 00:00:47]} 22. Bxb2
{[%clk 00:05:37]} {[%emt 00:00:15]} Qxb2 {[%clk 00:05:09]} {[%emt 00:00:02]} 23.
Bxe4 {[%clk 00:05:31]} {[%emt 00:00:12]} dxe4 {[%clk 00:04:40]} {[%emt
00:00:33]} 24. Nh4 {[%clk 00:04:49]} {[%emt 00:00:47]} Rxf1+ {[%clk 00:02:02]}
{[%emt 00:02:43]} 25. Qxf1 {[%clk 00:04:53]} {[%emt 00:00:01]} Be8 {[%clk
00:01:18]} {[%emt 00:00:50]} 26. Nf6+ {[%clk 00:04:52]} {[%emt 00:00:06]} Kg7
{[%clk 00:01:17]} {[%emt 00:00:05]} 27. Rb1 {[%clk 00:04:55]} {[%emt 00:00:02]}
Qa3 {[%clk 00:00:33]} {[%emt 00:00:49]} 28. Rxb7+ {[%clk 00:04:59]} {[%emt
00:00:02]} Ne7 {[%clk 00:00:37]} 29. Nxe8+ {[%clk 00:04:11]} {[%emt 00:00:52]}
Rxe8 {[%clk 00:00:31]} {[%emt 00:00:12]} 30. Qf6+ {[%clk 00:04:14]} {[%emt
00:00:03]} Kg8 {[%clk 00:00:32]} {[%emt 00:00:04]} 31. Qxe6+ {[%clk 00:04:17]}
{[%emt 00:00:02]} Kf8 {[%clk 00:00:21]} {[%emt 00:00:16]} 32. Rb1 {[%clk
00:04:13]} {[%emt 00:00:07]} Ng6 {[%clk 00:00:14]} {[%emt 00:00:14]} 33. Rf1+
{[%clk 00:04:11]} {[%emt 00:00:06]} Kg7 {[%clk 00:00:12]} {[%emt 00:00:07]} 34.
Qf7+ {[%clk 00:04:13]} {[%emt 00:00:02]} Kh8 {[%clk 00:00:16]} {[%emt
00:00:02]} 35. Qxe8+ {[%clk 00:04:16]} {[%emt 00:00:02]} 1-0

[Event "Open NK Rapid 2025 bord 26-50"]
[Site "Helmond, Netherlands"]
[Date "2025.05.03"]
[Round "2.17"]
[White "Kryshtopa, Dmytro"]
[Black "Jansz, Wilfred"]
[Result "0-1"]
[TimeControl "15 min +5 sec increment"]
[WhiteFideId "34160876"]
[BlackFideId "40107353"]
[WhiteElo "1791"]
[BlackElo "1996"]

1. e4 {[%clk 00:14:59]} {[%emt 00:00:09]} c5 {[%clk 00:15:08]} {[%emt
00:00:03]} 2. b3 {[%clk 00:14:56]} {[%emt 00:00:09]} d6 {[%clk 00:15:03]}
{[%emt 00:00:10]} 3. Bb2 {[%clk 00:14:48]} {[%emt 00:00:12]} Nf6 {[%clk
00:14:58]} {[%emt 00:00:10]} 4. Bb5+ {[%clk 00:14:48]} {[%emt 00:00:05]} Nbd7
{[%clk 00:14:54]} {[%emt 00:00:09]} 5. e5 {[%clk 00:13:44]} {[%emt 00:01:09]}
dxe5 {[%clk 00:14:25]} {[%emt 00:00:34]} 6. Bxe5 {[%clk 00:13:47]} {[%emt
00:00:02]} a6 {[%clk 00:14:19]} {[%emt 00:00:12]} 7. Bxd7+ {[%clk 00:13:43]}
{[%emt 00:00:09]} Bxd7 {[%clk 00:13:26]} {[%emt 00:00:57]} 8. Nf3 {[%clk
00:12:42]} {[%emt 00:01:06]} e6 {[%clk 00:13:04]} {[%emt 00:00:27]} 9. O-O
{[%clk 00:12:29]} {[%emt 00:00:19]} Be7 {[%clk 00:13:04]} {[%emt 00:00:05]} 10.
d3 {[%clk 00:10:59]} {[%emt 00:01:35]} O-O {[%clk 00:12:56]} {[%emt 00:00:13]}
11. Nbd2 {[%clk 00:11:02]} {[%emt 00:00:02]} Bc6 {[%clk 00:12:40]} {[%emt
00:00:21]} 12. Qe2 {[%clk 00:10:52]} {[%emt 00:00:14]} b5 {[%clk 00:09:32]}
{[%emt 00:03:14]} 13. Ne4 {[%clk 00:10:31]} {[%emt 00:00:26]} Nxe4 {[%clk
00:07:15]} {[%emt 00:02:21]} 14. dxe4 {[%clk 00:10:33]} {[%emt 00:00:04]} f6
{[%clk 00:05:23]} {[%emt 00:01:56]} 15. Rad1 {[%clk 00:10:04]} {[%emt
00:00:35]} Qe8 {[%clk 00:05:14]} {[%emt 00:00:14]} 16. Bc7 {[%clk 00:08:39]}
{[%emt 00:01:30]} Rc8 {[%clk 00:04:51]} {[%emt 00:00:27]} 17. Bf4 {[%clk
00:07:02]} {[%emt 00:01:43]} e5 {[%clk 00:04:33]} {[%emt 00:00:23]} 18. Bc1
{[%clk 00:06:37]} {[%emt 00:00:30]} Qg6 {[%clk 00:04:34]} {[%emt 00:00:03]} 19.
Rfe1 {[%clk 00:06:16]} {[%emt 00:00:27]} Rfd8 {[%clk 00:04:35]} {[%emt
00:00:04]} 20. Nh4 {[%clk 00:05:21]} {[%emt 00:01:01]} Qf7 {[%clk 00:04:34]}
{[%emt 00:00:05]} 21. Nf5 {[%clk 00:05:22]} {[%emt 00:00:04]} Bf8 {[%clk
00:04:27]} {[%emt 00:00:11]} 22. f3 {[%clk 00:05:10]} {[%emt 00:00:17]} g6
{[%clk 00:03:59]} {[%emt 00:00:33]} 23. Ne3 {[%clk 00:04:58]} {[%emt 00:00:18]}
Be7 {[%clk 00:02:39]} {[%emt 00:01:24]} 24. c4 {[%clk 00:04:37]} {[%emt
00:00:26]} Rd4 {[%clk 00:02:14]} {[%emt 00:00:30]} 25. Nd5 {[%clk 00:04:31]}
{[%emt 00:00:12]} Bxd5 {[%clk 00:01:55]} {[%emt 00:00:24]} 26. exd5 {[%clk
00:04:07]} {[%emt 00:00:29]} bxc4 {[%clk 00:01:30]} {[%emt 00:00:30]} 27. bxc4
{[%clk 00:04:09]} {[%emt 00:00:02]} Bd6 {[%clk 00:01:17]} {[%emt 00:00:19]} 28.
Be3 {[%clk 00:04:01]} {[%emt 00:00:14]} Rxd1 {[%clk 00:01:12]} {[%emt
00:00:09]} 29. Rxd1 {[%clk 00:04:00]} {[%emt 00:00:06]} Rb8 {[%clk 00:01:13]}
{[%emt 00:00:03]} 30. Qf2 {[%clk 00:03:54]} {[%emt 00:00:11]} Qc7 {[%clk
00:01:05]} {[%emt 00:00:13]} 31. Qh4 {[%clk 00:03:32]} {[%emt 00:00:28]} Qe7
{[%clk 00:00:49]} {[%emt 00:00:20]} 32. Qf2 {[%clk 00:03:15]} {[%emt 00:00:22]}
Rb4 {[%clk 00:00:50]} {[%emt 00:00:04]} 33. Qc2 {[%clk 00:03:14]} {[%emt
00:00:06]} Qb7 {[%clk 00:00:51]} {[%emt 00:00:04]} 34. Bc1 {[%clk 00:02:49]}
{[%emt 00:00:30]} a5 {[%clk 00:00:46]} {[%emt 00:00:09]} 35. h4 {[%clk
00:02:41]} {[%emt 00:00:14]} Qa6 {[%clk 00:00:50]} {[%emt 00:00:02]} 36. Bd2
{[%clk 00:00:48]} {[%emt 00:01:58]} Qxc4 {[%clk 00:00:39]} {[%emt 00:00:16]} 37.
Qxc4 {[%clk 00:00:40]} {[%emt 00:00:13]} Rxc4 {[%clk 00:00:43]} {[%emt
00:00:01]} 38. Bxa5 {[%clk 00:00:44]} {[%emt 00:00:01]} Rxh4 {[%clk 00:00:46]}
{[%emt 00:00:02]} 39. g4 {[%clk 00:00:32]} {[%emt 00:00:16]} f5 {[%clk
00:00:45]} {[%emt 00:00:06]} 40. Bd8 {[%clk 00:00:22]} {[%emt 00:00:15]} Rh3
{[%clk 00:00:15]} {[%emt 00:00:36]} 41. Kg2 {[%clk 00:00:24]} {[%emt 00:00:03]}
fxg4 {[%clk 00:00:18]} 42. fxg4 {[%clk 00:00:22]} {[%emt 00:00:07]} Ra3 {[%clk
00:00:21]} {[%emt 00:00:02]} 43. Rd2 {[%clk 00:00:15]} {[%emt 00:00:13]} c4
{[%clk 00:00:22]} {[%emt 00:00:03]} 44. Re2 {[%clk 00:00:00]} {[%emt 00:00:15]}
Kf7 {[%emt 00:00:03]} 0-1

[Event "Open NK Rapid 2025 bord 26-50"]
[Site "Helmond, Netherlands"]
[Date "2025.05.03"]
[Round "2.18"]
[White "Schleipfenbauer, Bent"]
[Black "Kakrana, Reyansh"]
[Result "0-1"]
[TimeControl "15 min +5 sec increment"]
[WhiteFideId "1048759"]
[BlackFideId "1094092"]
[WhiteElo "1992"]
[BlackElo "1796"]

1. e4 {[%clk 00:15:09]} c6 {[%clk 00:15:09]} {[%emt 00:00:02]} 2. d4 {[%clk
00:15:13]} {[%emt 00:00:01]} d5 {[%clk 00:15:13]} 3. e5 {[%clk 00:15:17]} c5
{[%clk 00:15:17]} {[%emt 00:00:01]} 4. dxc5 {[%clk 00:15:22]} e6 {[%clk
00:15:20]} {[%emt 00:00:03]} 5. a3 {[%clk 00:15:26]} Bxc5 {[%clk 00:15:22]}
{[%emt 00:00:03]} 6. b4 {[%clk 00:15:31]} Bb6 {[%clk 00:15:16]} {[%emt
00:00:10]} 7. Bb2 {[%clk 00:15:32]} {[%emt 00:00:04]} Ne7 {[%clk 00:12:58]}
{[%emt 00:02:23]} 8. Bd3 {[%clk 00:15:33]} {[%emt 00:00:04]} O-O {[%clk
00:11:40]} {[%emt 00:01:24]} 9. Nf3 {[%clk 00:15:23]} {[%emt 00:00:14]} h6
{[%clk 00:11:42]} {[%emt 00:00:03]} 10. O-O {[%clk 00:13:59]} {[%emt 00:01:30]}
Nf5 {[%clk 00:09:34]} {[%emt 00:02:13]} 11. Kh1 {[%clk 00:13:08]} {[%emt
00:00:55]} Nh4 {[%clk 00:08:19]} {[%emt 00:01:20]} 12. Nbd2 {[%clk 00:11:55]}
{[%emt 00:01:17]} a5 {[%clk 00:07:31]} {[%emt 00:00:54]} 13. b5 {[%clk
00:08:55]} {[%emt 00:03:05]} Nd7 {[%clk 00:07:24]} {[%emt 00:00:12]} 14. a4
{[%clk 00:08:39]} {[%emt 00:00:21]} Nxf3 {[%clk 00:06:55]} {[%emt 00:00:34]} 15.
Nxf3 {[%clk 00:08:01]} {[%emt 00:00:43]} Nc5 {[%clk 00:06:59]} {[%emt
00:00:01]} 16. Ba3 {[%clk 00:08:01]} {[%emt 00:00:05]} Nxd3 {[%clk 00:06:19]}
{[%emt 00:00:45]} 17. cxd3 {[%emt 00:00:16]} Re8 {[%clk 00:06:16]} {[%emt
00:00:07]} 18. d4 {[%clk 00:07:51]} {[%emt 00:00:05]} f6 {[%clk 00:05:39]}
{[%emt 00:00:43]} 19. Qd3 {[%clk 00:07:30]} {[%emt 00:00:26]} Qd7 {[%clk
00:03:55]} {[%emt 00:01:49]} 20. exf6 {[%clk 00:07:14]} {[%emt 00:00:20]} gxf6
{[%clk 00:03:58]} {[%emt 00:00:02]} 21. Qg6+ {[%clk 00:07:17]} {[%emt
00:00:02]} Kh8 {[%clk 00:03:51]} {[%emt 00:00:12]} 22. Qxh6+ {[%clk 00:07:17]}
{[%emt 00:00:05]} Qh7 {[%clk 00:03:49]} {[%emt 00:00:07]} 23. Qxf6+ {[%clk
00:07:17]} {[%emt 00:00:05]} Qg7 {[%clk 00:03:52]} {[%emt 00:00:02]} 24. Qh4+
{[%clk 00:05:54]} {[%emt 00:01:28]} Qh7 {[%clk 00:03:42]} {[%emt 00:00:16]} 25.
Qxh7+ {[%clk 00:05:50]} {[%emt 00:00:08]} Kxh7 {[%clk 00:03:45]} {[%emt
00:00:02]} 26. Rac1 {[%clk 00:05:44]} {[%emt 00:00:11]} Rg8 {[%clk 00:02:43]}
{[%emt 00:01:08]} 27. h3 {[%clk 00:05:02]} {[%emt 00:00:46]} Rg7 {[%clk
00:02:11]} {[%emt 00:00:37]} 28. Bd6 {[%clk 00:04:46]} {[%emt 00:00:21]} Bd7
{[%clk 00:01:46]} {[%emt 00:00:30]} 29. Bc7 {[%clk 00:03:57]} {[%emt 00:00:53]}
Bxb5 {[%clk 00:01:23]} {[%emt 00:00:29]} 30. Bxb6 {[%clk 00:03:54]} {[%emt
00:00:08]} Bxf1 {[%clk 00:01:24]} {[%emt 00:00:04]} 31. Rxf1 {[%clk 00:03:54]}
{[%emt 00:00:05]} Rc8 {[%clk 00:00:54]} {[%emt 00:00:35]} 32. Bxa5 {[%clk
00:03:32]} {[%emt 00:00:27]} Ra8 {[%clk 00:00:57]} {[%emt 00:00:02]} 33. Bd2
{[%clk 00:03:10]} {[%emt 00:00:27]} Rxa4 {[%clk 00:00:31]} {[%emt 00:00:31]} 34.
Ng5+ {[%clk 00:03:14]} Kg8 {[%clk 00:00:35]} {[%emt 00:00:01]} 35. Nxe6 {[%emt
00:00:54]} Re7 {[%clk 00:00:36]} {[%emt 00:00:03]} 36. Re1 {[%clk 00:02:17]}
{[%emt 00:00:14]} Ra6 {[%clk 00:00:27]} {[%emt 00:00:14]} 37. Nf4 {[%emt
00:00:29]} Rxe1+ {[%clk 00:00:29]} {[%emt 00:00:02]} 38. Bxe1 {[%clk 00:01:58]}
Ra1 {[%clk 00:00:34]} 39. Nxd5 {[%clk 00:02:02]} {[%emt 00:00:01]} Rxe1+ {[%clk
00:00:37]} {[%emt 00:00:02]} 40. Kh2 {[%clk 00:02:07]} Rd1 {[%clk 00:00:37]}
{[%emt 00:00:05]} 41. Ne7+ {[%clk 00:01:46]} {[%emt 00:00:24]} Kf7 {[%clk
00:00:37]} {[%emt 00:00:06]} 42. Nf5 {[%clk 00:01:50]} {[%emt 00:00:01]} Kf6
{[%clk 00:00:31]} {[%emt 00:00:11]} 43. g4 {[%clk 00:01:49]} {[%emt 00:00:06]}
b5 {[%clk 00:00:34]} {[%emt 00:00:02]} 44. Nd6 {[%clk 00:01:53]} b4 {[%clk
00:00:31]} {[%emt 00:00:08]} 45. f4 {[%clk 00:01:30]} {[%emt 00:00:28]} Rxd4
{[%clk 00:00:28]} {[%emt 00:00:08]} 46. Nb5 {[%emt 00:00:10]} Rxf4 {[%clk
00:00:17]} {[%emt 00:00:14]} 47. Kg3 {[%emt 00:00:02]} Rc4 {[%clk 00:00:21]}
{[%emt 00:00:01]} 48. h4 {[%clk 00:01:29]} {[%emt 00:00:06]} b3 {[%clk
00:00:23]} {[%emt 00:00:03]} 49. g5+ {[%clk 00:01:31]} {[%emt 00:00:04]} Kg6
{[%clk 00:00:27]} {[%emt 00:00:01]} 50. Nd6 {[%clk 00:01:22]} {[%emt 00:00:13]}
Rd4 {[%clk 00:00:24]} {[%emt 00:00:08]} 51. Nb5 {[%clk 00:01:10]} {[%emt
00:00:18]} Rd3+ {[%clk 00:00:26]} {[%emt 00:00:03]} 52. Kg4 {[%emt 00:00:03]}
b2 {[%clk 00:00:28]} {[%emt 00:00:02]} 53. h5+ {[%clk 00:01:15]} {[%emt
00:00:02]} Kg7 {[%clk 00:00:29]} {[%emt 00:00:38]} 0-1

[Event "Open NK Rapid 2025 bord 26-50"]
[Site "Helmond, Netherlands"]
[Date "2025.05.03"]
[Round "2.19"]
[White "Zhou, Yanyang"]
[Black "Den Heijer, Rolinde"]
[Result "0-1"]
[TimeControl "15 min +5 sec increment"]
[WhiteFideId "40109739"]
[BlackFideId "1068300"]
[WhiteElo "1785"]
[BlackElo "1991"]

1. e4 {[%clk 00:15:09]} c5 {[%clk 00:15:09]} {[%emt 00:00:02]} 2. Nf3 {[%clk
00:15:12]} {[%emt 00:00:01]} d6 {[%clk 00:15:13]} {[%emt 00:00:02]} 3. Bb5+
{[%clk 00:15:16]} {[%emt 00:00:01]} Bd7 {[%clk 00:15:15]} {[%emt 00:00:03]} 4.
Bxd7+ {[%clk 00:15:19]} {[%emt 00:00:02]} Nxd7 {[%clk 00:15:04]} {[%emt
00:00:16]} 5. O-O {[%clk 00:15:17]} {[%emt 00:00:07]} g6 {[%clk 00:15:07]}
{[%emt 00:00:02]} 6. c3 {[%clk 00:15:02]} {[%emt 00:00:20]} Ngf6 {[%clk
00:14:52]} {[%emt 00:00:19]} 7. Re1 {[%clk 00:15:04]} {[%emt 00:00:04]} Bg7
{[%clk 00:14:50]} {[%emt 00:00:07]} 8. d4 {[%clk 00:15:05]} {[%emt 00:00:04]}
O-O {[%clk 00:14:46]} {[%emt 00:00:09]} 9. Nbd2 {[%clk 00:14:41]} {[%emt
00:00:29]} cxd4 {[%clk 00:14:30]} {[%emt 00:00:21]} 10. cxd4 {[%clk 00:14:43]}
{[%emt 00:00:02]} Rc8 {[%clk 00:14:30]} {[%emt 00:00:05]} 11. Nf1 {[%clk
00:14:23]} {[%emt 00:00:25]} Qb6 {[%clk 00:13:59]} {[%emt 00:00:37]} 12. b3
{[%clk 00:13:17]} {[%emt 00:01:11]} Rfd8 {[%clk 00:13:31]} {[%emt 00:00:33]} 13.
Bb2 {[%clk 00:13:14]} {[%emt 00:00:08]} d5 {[%clk 00:12:57]} {[%emt 00:00:39]}
14. e5 {[%clk 00:13:04]} {[%emt 00:00:15]} Ne4 {[%clk 00:12:53]} {[%emt
00:00:09]} 15. N1d2 {[%clk 00:12:51]} {[%emt 00:00:18]} Nc3 {[%clk 00:12:24]}
{[%emt 00:00:34]} 16. Bxc3 {[%clk 00:12:25]} {[%emt 00:00:31]} Rxc3 {[%clk
00:12:27]} {[%emt 00:00:02]} 17. Rc1 {[%clk 00:11:59]} {[%emt 00:00:31]} Rdc8
{[%clk 00:11:26]} {[%emt 00:01:06]} 18. Rxc3 {[%clk 00:11:43]} {[%emt
00:00:20]} Rxc3 {[%clk 00:11:29]} {[%emt 00:00:02]} 19. Nb1 {[%clk 00:11:41]}
{[%emt 00:00:07]} Rc8 {[%clk 00:11:25]} {[%emt 00:00:09]} 20. Qd2 {[%clk
00:11:13]} {[%emt 00:00:33]} Qc6 {[%clk 00:11:12]} {[%emt 00:00:19]} 21. Na3
{[%clk 00:10:42]} {[%emt 00:00:36]} Nf8 {[%clk 00:11:02]} {[%emt 00:00:15]} 22.
Re2 {[%clk 00:10:32]} {[%emt 00:00:15]} Qa6 {[%clk 00:10:41]} {[%emt 00:00:25]}
23. Nb1 {[%clk 00:10:14]} {[%emt 00:00:24]} Bh6 {[%clk 00:10:02]} {[%emt
00:00:44]} 24. Qb2 {[%clk 00:09:51]} {[%emt 00:00:28]} Bc1 {[%clk 00:09:21]}
{[%emt 00:00:46]} 25. Qa1 {[%clk 00:07:42]} {[%emt 00:02:15]} Qxe2 {[%clk
00:09:09]} {[%emt 00:00:16]} 26. Nc3 {[%clk 00:07:35]} {[%emt 00:00:12]} Qc2
{[%clk 00:08:54]} {[%emt 00:00:19]} 27. Ne1 {[%clk 00:06:55]} {[%emt 00:00:45]}
Qxc3 {[%clk 00:08:48]} {[%emt 00:00:11]} 28. Qxc3 {[%clk 00:06:59]} {[%emt
00:00:01]} Rxc3 {[%clk 00:08:51]} {[%emt 00:00:03]} 29. Kf1 {[%clk 00:06:54]}
{[%emt 00:00:10]} Ne6 {[%clk 00:08:44]} {[%emt 00:00:12]} 30. Nf3 {[%clk
00:06:54]} {[%emt 00:00:05]} Bb2 {[%clk 00:08:36]} {[%emt 00:00:12]} 31. Ke2
{[%clk 00:06:50]} {[%emt 00:00:09]} Rc2+ {[%clk 00:08:28]} {[%emt 00:00:14]} 32.
Ke3 {[%clk 00:06:49]} {[%emt 00:00:06]} Bc1+ {[%clk 00:08:03]} {[%emt
00:00:30]} 33. Kd3 {[%clk 00:06:46]} {[%emt 00:00:08]} Rxf2 {[%clk 00:07:59]}
{[%emt 00:00:09]} 34. Ne1 {[%clk 00:06:28]} {[%emt 00:00:22]} Nf4+ {[%clk
00:07:16]} {[%emt 00:00:49]} 35. Kc3 {[%clk 00:06:24]} {[%emt 00:00:10]} Bd2+
{[%clk 00:07:14]} {[%emt 00:00:06]} 36. Kc2 {[%clk 00:06:26]} {[%emt 00:00:02]}
Bxe1+ {[%clk 00:07:16]} {[%emt 00:00:04]} 37. Kc1 {[%clk 00:06:29]} {[%emt
00:00:02]} Bc3 {[%clk 00:07:05]} {[%emt 00:00:15]} 38. Kb1 {[%clk 00:06:29]}
{[%emt 00:00:05]} Ne6 {[%clk 00:06:58]} {[%emt 00:00:13]} 39. Kc1 {[%clk
00:06:28]} {[%emt 00:00:06]} Nxd4 {[%clk 00:07:00]} {[%emt 00:00:03]} 40. Kb1
{[%clk 00:06:29]} {[%emt 00:00:03]} Rf1# {[%clk 00:06:55]} {[%emt 00:00:04]}
0-1